fUST/lending_fUST_20240120
["ID","MTS","AMOUNT","RATE_DAILY","PERIOD"]
[312232938,1705697439860,-280.0,0.00025222,7]
[312232939,1705697439869,-199.14321435,0.00027571,2]
[312232940,1705697439878,-3484.00738958,0.00027572,2]
[312232941,1705697439888,-2834.78752031,0.00027572,2]
[312232942,1705697439897,-630.3213036,0.00027573,2]
[312232943,1705697439910,-154.86062544,0.00027743,2]
[312232944,1705697439919,-391.0,0.00027744,15]
[312232945,1705697439928,-459.40579009,0.00027843,2]
[312232946,1705697439938,-955.18585599,0.0002785,4]
[312232947,1705697439947,-290.08228321,0.00028,2]
[312232948,1705697439955,-300.0,0.00028,2]
[312232949,1705697439964,-4779.59202112,0.00028023,2]
[312232950,1705697439973,-167.360777,0.00028768,2]
[312232951,1705697439982,-620.51606518,0.00028952,2]
[312232952,1705697439991,-1879.41245692,0.00029,2]
[312232953,1705697440000,-763.6737386,0.00029251,2]
[312232954,1705697440009,-1738.44,0.00029297,3]
[312232955,1705697440018,-394.57848758,0.00029306,2]
[312232956,1705697440026,-5000.0,0.00029307,5]
[312232957,1705697440035,-2854.66007271,0.00029307,4]
[312232958,1705697440045,-50556.55645537,0.00029307,4]
[312232959,1705697440055,-199.0432224,0.00029315,2]
[312232960,1705697440064,-309.58208351,0.00029497,10]
[312232961,1705697440074,-20864.2178903,0.00029497,2]
[312232962,1705697440173,-740.81370562,0.00029498,2]
[312232963,1705697440186,-1195.68341464,0.00029498,2]
[312232964,1705697440196,-343.96412098,0.00029498,2]
[312232965,1705697440206,-398.19377489,0.00029498,2]
[312232966,1705697440215,-826.44094671,0.00029498,5]
[312232967,1705697440225,-155.26982629,0.00029498,2]
[312232968,1705697440234,-902.59064044,0.00029499,2]
[312232969,1705697440244,-302.12150469,0.00029499,2]
[312232970,1705697440254,-14768.13908477,0.00029499,2]
[312232971,1705697440264,-500.0,0.00029499,2]
[312232972,1705697440274,-500.0,0.00029499,2]
[312232973,1705697440283,-500.0,0.00029499,2]
[312232975,1705697440293,-500.0,0.00029499,2]
[312232977,1705697440302,-500.0,0.00029499,2]
[312232978,1705697440312,-500.0,0.00029499,2]
[312232979,1705697440321,-618.87843842,0.00029499,2]
[312232980,1705697440331,-156.70102538,0.00029499,2]
[312232981,1705697440340,-244.08072695,0.00029499,2]
[312232982,1705697440349,-489.92337579,0.00029499,2]
[312232983,1705697440358,-500.0,0.00029499,2]
[312232984,1705697440368,-500.0,0.00029499,2]
[312232985,1705697440378,-500.0,0.00029499,2]
[312232986,1705697440388,-500.0,0.00029499,2]
[312232987,1705697440398,-500.0,0.00029499,2]
[312232989,1705697440410,-452.21604804,0.00029499,2]
[312232991,1705697440419,-488.58216454,0.00029499,2]
[312232992,1705697440428,-500.0,0.00029499,2]
[312232994,1705697440438,-22014.68480019,0.000295,30]
[312232996,1705697440448,-522.7253954,0.00029737,2]
[312232998,1705697440458,-688.01285151,0.0003,4]
[312233000,1705697440467,-500.0,0.00030136,2]
[312233002,1705697440477,-153.0,0.00030137,2]
[312233003,1705697440486,-199.0432224,0.00030137,2]
[312233004,1705697440496,-153.0,0.00030137,2]
[312233006,1705697440505,-153.0,0.00030137,2]
[312233007,1705697440514,-153.0,0.00030137,2]
[312233009,1705697440523,-153.0,0.00030137,2]
[312233011,1705697440532,-153.0,0.00030137,2]
[312233013,1705697440541,-153.0,0.00030137,2]
[312233014,1705697440553,-153.0,0.00030137,2]
[312233016,1705697440562,-153.0,0.00030137,2]
[312233017,1705697440572,-153.0,0.00030137,2]
[312233019,1705697440581,-199.0432224,0.00030137,2]
[312233020,1705697440591,-153.0,0.00030137,2]
[312233022,1705697440600,-153.0,0.00030137,2]
[312233024,1705697440609,-153.0,0.00030137,2]
[312233026,1705697440618,-199.0432224,0.00030137,2]
[312233028,1705697440628,-153.0,0.00030137,2]
[312233029,1705697440637,-153.0,0.00030137,2]
[312233031,1705697440647,-199.0432224,0.00030137,2]
[312233033,1705697440661,-153.0,0.00030137,2]
[312233034,1705697440671,-153.0,0.00030137,2]
[312233036,1705697440681,-153.0,0.00030137,2]
[312233038,1705697440692,-199.0432224,0.00030137,2]
[312233040,1705697440702,-153.0,0.00030137,2]
[312233042,1705697440712,-199.0432224,0.00030137,2]
[312233044,1705697440722,-153.0,0.00030137,2]
[312233045,1705697440731,-153.0,0.00030137,2]
[312233047,1705697440740,-199.0432224,0.00030137,2]
[312233049,1705697440749,-199.0432224,0.00030137,2]
[312233050,1705697440758,-199.0432224,0.00030137,2]
[312233051,1705697440768,-199.0432224,0.00030137,2]
[312233052,1705697440777,-199.0432224,0.00030137,2]
[312233053,1705697440786,-199.0432224,0.00030137,2]
[312233054,1705697440796,-199.0432224,0.00030137,2]
[312233055,1705697440805,-153.0,0.00030137,2]
[312233056,1705697440815,-199.0432224,0.00030137,2]
[312233057,1705697440824,-153.0,0.00030137,2]
[312233058,1705697440834,-153.0,0.00030137,2]
[312233059,1705697440843,-199.0432224,0.00030137,2]
[312233060,1705697440852,-153.0,0.00030137,2]
[312233061,1705697440862,-199.0432224,0.00030137,2]
[312233062,1705697440872,-199.0432224,0.00030137,2]
[312233063,1705697440881,-153.0,0.00030137,2]
[312233064,1705697440891,-153.0,0.00030137,2]
[312233065,1705697440901,-153.0,0.00030137,2]
[312233066,1705697440917,-153.0,0.00030137,2]
[312233067,1705697440926,-153.0,0.00030137,2]
[312233068,1705697440936,-153.0,0.00030137,2]
[312233069,1705697440946,-153.0,0.00030137,2]
[312233070,1705697440956,-153.0,0.00030137,2]
[312233071,1705697440966,-153.0,0.00030137,2]
[312233072,1705697440975,-153.0,0.00030137,2]
[312233073,1705697440984,-153.0,0.00030137,2]
[312233074,1705697440994,-153.0,0.00030137,2]
[312233075,1705697441003,-153.0,0.00030137,2]
[312233076,1705697441013,-153.0,0.00030137,2]
[312233077,1705697441023,-199.0432224,0.00030137,2]
[312233078,1705697441033,-153.0,0.00030137,2]
[312233079,1705697441042,-153.0,0.00030137,2]
[312233080,1705697441052,-153.0,0.00030137,2]
[312233081,1705697441062,-153.0,0.00030137,2]
[312233082,1705697441071,-199.0432224,0.00030137,2]
[312233083,1705697441081,-199.0432224,0.00030137,2]
[312233084,1705697441090,-199.0432224,0.00030137,2]
[312233085,1705697441100,-153.0,0.00030137,2]
[312233086,1705697441110,-344.2401018,0.00030137,2]
[312233087,1705697441119,-153.0,0.00030137,2]
[312233088,1705697441129,-153.0,0.00030137,2]
[312233089,1705697441139,-153.0,0.00030137,2]
[312233090,1705697441149,-306.0,0.00030137,2]
[312233091,1705697441163,-153.0,0.00030137,2]
[312233092,1705697441172,-153.0,0.00030137,2]
[312233093,1705697441182,-153.0,0.00030137,2]
[312233094,1705697441192,-153.0,0.00030137,2]
[312233095,1705697441202,-153.0,0.00030137,2]
[312233096,1705697441213,-153.0,0.00030137,2]
[312233097,1705697441222,-153.0,0.00030137,2]
[312233098,1705697441232,-153.0,0.00030137,2]
[312233099,1705697441242,-153.0,0.00030137,2]
[312233100,1705697441251,-317.5804385,0.00030137,2]
[312233101,1705697441260,-153.0,0.00030137,2]
[312233102,1705697441269,-199.0432224,0.00030137,2]
[312233103,1705697441278,-199.0432224,0.00030137,2]
[312233104,1705697441288,-199.0432224,0.00030137,2]
[312233105,1705697441298,-229.350845,0.00030137,2]
[312233106,1705697441307,-161.882638,0.00030137,2]
[312233107,1705697441316,-500.0,0.00030273,2]
[312233108,1705697441325,-620.02580326,0.00030399,2]
[312233109,1705697441336,-500.0,0.0003041,2]
[312233111,1705697441345,-200.0,0.00030519,15]
[312233113,1705697441355,-348.0,0.00030519,15]
[312233115,1705697441364,-500.0,0.00030547,2]
[312233117,1705697441373,-500.0,0.00030684,2]
[312233119,1705697441381,-285.51171302,0.00030721,2]
[312233121,1705697441391,-782.0,0.00030766,30]
[312233123,1705697441400,-154.0,0.00030766,30]
[312233125,1705697441413,-782.0,0.00030776,30]
[312233127,1705697441422,-154.0,0.00030776,30]
[312233129,1705697441431,-782.0,0.00030786,30]
[312233131,1705697441440,-154.0,0.00030786,30]
[312233133,1705697441449,-157.43,0.00030786,30]
[312233135,1705697441458,-496.91772445,0.00030794,4]
[312233137,1705697441468,-195.04845331,0.00030794,4]
[312233139,1705697441477,-179.11058245,0.00030794,4]
[312233141,1705697441486,-362.82536641,0.00030794,4]
[312233143,1705697441495,-401.46971733,0.00030796,3]
[312233145,1705697441505,-265014.48981335,0.00030796,2]
[312233147,1705697441514,-500.0,0.00030821,2]
[312233149,1705697441523,-1484.16070706,0.00030894,4]
[312233151,1705697441533,-286.22633212,0.00030894,4]
[312233153,1705697441544,-392.51337426,0.00030895,2]
[312233155,1705697441554,-513.54822681,0.00030895,4]
[312233156,1705697441566,-500.0,0.00030895,4]
[312233159,1705697441576,-475.01653594,0.00030895,4]
[312233161,1705697441586,-204.01287626,0.00030895,4]
[312233162,1705697441596,-478.33972754,0.00030895,4]
[312233164,1705697441606,-433.78102858,0.00030895,4]
[312233167,1705697441616,-77708.13121844,0.00030896,2]
[312233168,1705697441626,-3000.0,0.000309,14]
[312233170,1705697441636,-500.0,0.00030958,2]
[312233172,1705697441645,-229.350845,0.00030959,2]
[312233174,1705697441656,-246.90614662,0.00030996,4]
[312233176,1705697441666,-1815.68321298,0.00030996,2]
[312233178,1705697441676,-423.3648219,0.00030996,2]
[312233180,1705697441686,-155.14101314,0.00030996,4]
[312233182,1705697441696,-636.76716654,0.00030996,4]
[312233192,1705697441782,-5483.36584487,0.00030997,4]
[312233194,1705697441792,-322.82895147,0.00030998,4]
[312233196,1705697441802,-1376.48946835,0.00030998,4]
[312233198,1705697441812,-3128.22508425,0.00030998,4]
[312233200,1705697441821,-155.13782737,0.00030998,4]
[312233202,1705697441831,-1932.66463311,0.00030998,3]
[312233204,1705697441841,-12167.23553282,0.00030998,4]
[312233206,1705697441852,-357.25188437,0.00030998,4]
[312233208,1705697441862,-198.20629725,0.00030998,4]
[312233210,1705697441872,-207.1454238,0.00030998,4]
[312233212,1705697441882,-7996.6868672,0.00030998,4]
[312233214,1705697441892,-164.49774557,0.00030998,4]
[312233216,1705697441902,-1000.0,0.00030999,14]
[312233218,1705697441915,-829.1810316,0.00030999,14]
[312233220,1705697441925,-730.94,0.00030999,2]
[312233222,1705697441934,-730.94,0.00030999,2]
[312233223,1705697441945,-730.94,0.00030999,2]
[312233225,1705697441955,-730.94,0.00030999,2]
[312233227,1705697441965,-730.94,0.00030999,2]
[312233229,1705697441975,-730.94,0.00030999,2]
[312233232,1705697441985,-730.94,0.00030999,2]
[312233234,1705697441997,-730.94,0.00030999,2]
[312233236,1705697442006,-730.94,0.00030999,2]
[312233238,1705697442017,-149238.3766481,0.00031,2]
[312233240,1705697442027,-238.08177011,0.00031,2]
[312233242,1705697442037,-887.29357064,0.00031,4]
[312233244,1705697442047,-683.73115674,0.00031,4]
[312233246,1705697442057,-4561.83306101,0.00031,4]
[312233248,1705697442067,-154.86062544,0.00031,2]
[312233250,1705697442077,-410.47740177,0.00031,4]
[312233252,1705697442088,-195.20473695,0.00031,4]
[312233254,1705697442098,-333.78941707,0.00031,2]
[312233256,1705697442108,-4320.19775833,0.00031,4]
[312233258,1705697442117,-300.0,0.00031,15]
[312233259,1705697442127,-500.0,0.00031095,2]
[312233261,1705697442137,-500.0,0.00031232,2]
[312233263,1705697442147,-285.51171299,0.00031266,2]
[312233265,1705697442157,-509.1638357,0.00031369,2]
[312233268,1705697442167,-911.0,0.000314,2]
[312233269,1705697442177,-229.350845,0.00031781,2]
[312233272,1705697442187,-161.882638,0.00031781,2]
[312233274,1705697442196,-285.51171299,0.00031811,2]
[312233276,1705697442205,-319.08679849,0.00032,4]
[312233277,1705697442215,-680.02795571,0.00032,3]
[312233279,1705697442223,-155.0,0.00032,2]
[312233281,1705697442232,-500.0,0.00032,3]
[312233283,1705697442242,-621.98852792,0.00032001,2]
[312233285,1705697442251,-150.0,0.00032052,2]
[312233287,1705697442261,-150.0,0.00032052,2]
[312233290,1705697442271,-285.51171299,0.00032355,2]
[312233291,1705697442281,-300.0,0.000325,16]
[312233294,1705697442290,-172.49119979,0.0003255,6]
[312233295,1705697442300,-229.350845,0.00032603,2]
[312233298,1705697442310,-1000.0,0.00032726,2]
[312233299,1705697442320,-6968.59557319,0.00032733,2]
[312233301,1705697442330,-1000.0,0.00032735,2]
[312233303,1705697442340,-255.78146268,0.00032774,2]
[312233305,1705697442349,-1000.0,0.00032818,2]
[312233307,1705697442359,-1000.0,0.00032833,2]
[312233309,1705697442368,-1000.0,0.0003287,2]
[312233311,1705697442378,-250.0,0.00032876,7]
[312233313,1705697442388,-492.44253184,0.00032876,7]
[312233315,1705697442397,-500.0,0.00032876,7]
[312233318,1705697442409,-500.0,0.00032876,7]
[312233319,1705697442418,-492.52576903,0.00032876,7]
[312233321,1705697442427,-446.44843617,0.00032876,7]
[312233323,1705697442437,-500.0,0.00032876,7]
[312233325,1705697442447,-500.0,0.00032876,7]
[312233327,1705697442456,-214.15882882,0.00032876,7]
[312233329,1705697442464,-500.0,0.00032876,7]
[312233331,1705697442474,-500.0,0.00032876,7]
[312233333,1705697442484,-500.0,0.00032876,7]
[312233335,1705697442493,-193.80687773,0.00032876,7]
[312233337,1705697442502,-1000.0,0.00032892,2]
[312233339,1705697442512,-1000.0,0.00032895,2]
[312233341,1705697442521,-26130.65114817,0.000329,3]
[312233343,1705697442531,-1000.0,0.000329,2]
[312233345,1705697442540,-285.51171299,0.000329,2]
[312233347,1705697442550,-1000.0,0.00032908,2]
[312233349,1705697442563,-1000.0,0.00032919,2]
[312233351,1705697442572,-1000.0,0.00032939,2]
[312233353,1705697442582,-1000.0,0.00032941,2]
[312233355,1705697442591,-1000.0,0.00032943,2]
[312233357,1705697442602,-1000.0,0.00032958,2]
[312233359,1705697442611,-1045.26733645,0.00032963,4]
[312233361,1705697442621,-1000.0,0.00032964,2]
[312233363,1705697442631,-333.72496748,0.00032966,2]
[312233365,1705697442641,-150.5,0.0003298,30]
[312233367,1705697442651,-150.5,0.0003298,30]
[312233369,1705697442662,-150.5,0.0003299,30]
[312233371,1705697442671,-150.5,0.0003299,30]
[312233373,1705697442681,-243.69,0.0003299,30]
[312233375,1705697442690,-1273.60431467,0.0003299,2]
[312233377,1705697442700,-677.25499859,0.00032996,4]
[312233379,1705697442709,-310.78488395,0.00032996,4]
[312233382,1705697442719,-957.12041936,0.00032996,4]
[312233385,1705697442730,-242.70971485,0.00032996,4]
[312233388,1705697442740,-738.92721496,0.00032996,4]
[312233391,1705697442749,-264.80820677,0.00032996,4]
[312233395,1705697442760,-5134.71110403,0.00032996,2]
[312233396,1705697442770,-155.058075,0.00032997,4]
[312233398,1705697442779,-155.51794022,0.00032997,2]
[312233401,1705697442789,-245.96363413,0.00032998,4]
[312233403,1705697442798,-785.49820761,0.00032998,4]
[312233405,1705697442809,-4005.39956635,0.00032998,4]
[312233407,1705697442819,-155.08684864,0.00032998,4]
[312233409,1705697442828,-174.94849142,0.00032998,4]
[312233411,1705697442838,-463.33659972,0.00032998,2]
[312233413,1705697442848,-1980.58047563,0.00032998,3]
[312233415,1705697442857,-197.19,0.00032999,2]
[312233417,1705697442866,-235.50802456,0.00032999,7]
[312233419,1705697442876,-308.12893609,0.00032999,7]
[312233421,1705697442886,-528.00965719,0.00032999,7]
[312233423,1705697442898,-287.00383652,0.00032999,7]
[312233425,1705697442908,-842132.42509293,0.00033,7]
[312233427,1705697442918,-386.44566217,0.00033,2]
[312233429,1705697442927,-283.06089695,0.00033,3]
[312233431,1705697442937,-6762.26543772,0.00033,4]
[312233433,1705697442947,-500.0,0.00033,3]
[312233435,1705697442957,-2953.706728,0.00033,2]
[312233437,1705697442967,-150.0,0.00033,6]
[312233439,1705697442976,-245.045733,0.00033,6]
[312233441,1705697442985,-155.0,0.0003337,2]
[312233443,1705697442995,-50000.0,0.00033371,7]
[312233445,1705697443004,-50000.0,0.00033373,7]
[312233446,1705697443013,-229.350845,0.00033425,2]
[312233448,1705697443022,-161.882638,0.00033425,2]
[312233450,1705697443033,-200.0,0.00033571,15]
[312233452,1705697443042,-200.0,0.00033571,15]
[312233455,1705697443053,-368.0,0.00033571,15]
[312233457,1705697443063,-200.0,0.000336,4]
[312233459,1705697443073,-151.0,0.00033707,2]
[312233461,1705697443082,-1098.06332805,0.00034,3]
[312233462,1705697443092,-1000.0,0.00034,34]
[312233464,1705697443102,-300.0,0.00034,17]
[312233467,1705697443112,-500.0,0.00034,3]
[312233469,1705697443121,-500.0,0.00034246,7]
[312233471,1705697443131,-229.350845,0.00034247,2]
[312233473,1705697443141,-2292.61420092,0.00034378,2]
[312233475,1705697443150,-290.594649,0.00034401,2]
[312233477,1705697443161,-154.03091,0.00034401,2]
[312233479,1705697443171,-332.465889,0.00034401,2]
[312233480,1705697443180,-153.790095,0.00034401,2]
[312233482,1705697443189,-198.833422,0.00034401,2]
[312233491,1705697443261,-180.818253,0.00034401,2]
[312233493,1705697443271,-151.0,0.00034416,2]
[312233495,1705697443281,-155.0,0.0003474,2]
[312233497,1705697443291,-290.594649,0.00034831,2]
[312233499,1705697443302,-332.465889,0.00034831,2]
[312233501,1705697443311,-153.790095,0.00034831,2]
[312233503,1705697443321,-151.32984646,0.00034847,2]
[312233505,1705697443331,-651.07456748,0.00035,4]
[312233507,1705697443341,-154.76784823,0.00035,4]
[312233509,1705697443351,-154.76784823,0.00035,4]
[312233511,1705697443361,-591.76162003,0.00035,2]
[312233513,1705697443371,-2084.5801718,0.00035,4]
[312233515,1705697443380,-48421.44797085,0.00035,2]
[312233517,1705697443389,-3119.50448181,0.00035,19]
[312233519,1705697443398,-19060.79918765,0.00035,3]
[312233521,1705697443411,-3592.36268445,0.00035,2]
[312233523,1705697443421,-607.87489301,0.00035,14]
[312233525,1705697443430,-333.05418458,0.00035,4]
[312233527,1705697443440,-500.0,0.00035,3]
[312233529,1705697443450,-201.81838364,0.00035,2]
[312233531,1705697443460,-150.0,0.00035052,2]
[312233533,1705697443469,-229.350845,0.00035068,2]
[312233535,1705697443478,-161.882638,0.00035068,2]
[312233537,1705697443487,-151.0,0.00035124,4]
[312233539,1705697443497,-154.03091,0.00035261,2]
[312233541,1705697443505,-290.594649,0.00035261,2]
[312233543,1705697443515,-332.465889,0.00035261,2]
[312233545,1705697443524,-153.790095,0.00035261,2]
[312233547,1705697443533,-5000.0,0.00035423,7]
[312233549,1705697443547,-12604.631068,0.000355,14]
[312233551,1705697443559,-300.0,0.000355,18]
[312233553,1705697443568,-750.0,0.00035616,7]
[312233555,1705697443581,-678.70377341,0.00035616,2]
[312233557,1705697443591,-287.346468,0.00035616,120]
[312233560,1705697443601,-290.594649,0.00035691,2]
[312233561,1705697443610,-332.465889,0.00035691,2]
[312233564,1705697443619,-153.790095,0.00035691,2]
[312233566,1705697443629,-201.81838364,0.000357,2]
[312233568,1705697443639,-2000.0,0.0003577,2]
[312233569,1705697443649,-151.0,0.00035833,4]
[312233571,1705697443661,-30000.0,0.00035858,5]
[312233573,1705697443670,-229.350845,0.0003589,2]
[312233576,1705697443679,-154.0,0.00035968,30]
[312233578,1705697443689,-782.0,0.00035968,30]
[312233580,1705697443698,-154.0,0.00035978,30]
[312233582,1705697443707,-782.0,0.00035978,30]
[312233584,1705697443716,-154.0,0.00035988,30]
[312233586,1705697443725,-782.0,0.00035988,30]
[312233588,1705697443734,-3910.88074803,0.00035998,2]
[312233590,1705697443743,-285193.1318375,0.00036,4]
[312233592,1705697443752,-1000.0,0.00036,36]
[312233593,1705697443762,-151.0,0.00036,2]
[312233595,1705697443771,-151.0,0.00036,2]
[312233597,1705697443781,-151.0,0.00036,2]
[312233599,1705697443791,-151.0,0.00036,2]
[312233601,1705697443800,-151.0,0.00036,2]
[312233603,1705697443809,-151.0,0.00036,2]
[312233605,1705697443819,-411.419243,0.00036,2]
[312233608,1705697443828,-411.419243,0.00036,2]
[312233610,1705697443837,-1265.817322,0.00036,2]
[312233612,1705697443846,-1265.817322,0.00036,2]
[312233613,1705697443855,-10000.0,0.00036,2]
[312233616,1705697443865,-10000.0,0.00036,2]
[312233617,1705697443874,-10000.0,0.00036,2]
[312233619,1705697443884,-155.0,0.0003611,2]
[312233621,1705697443893,-154.03091,0.00036121,2]
[312233624,1705697443905,-198.833422,0.00036121,2]
[312233625,1705697443914,-180.818253,0.00036121,2]
[312233628,1705697443923,-290.594649,0.00036121,2]
[312233630,1705697443933,-332.465889,0.00036121,2]
[312233632,1705697443943,-153.790095,0.00036121,2]
[312233634,1705697443952,-300.0,0.00036394,2]
[312233635,1705697443961,-125865.13922635,0.000364,7]
[312233637,1705697443971,-151.0,0.000364,2]
[312233640,1705697443980,-411.419243,0.000364,2]
[312233641,1705697443989,-411.419243,0.000364,2]
[312233643,1705697443998,-1265.817322,0.000364,2]
[312233645,1705697444007,-1265.817322,0.000364,2]
[312233647,1705697444016,-10000.0,0.000364,2]
[312233649,1705697444025,-10000.0,0.000364,2]
[312233651,1705697444035,-10000.0,0.000364,2]
[312233653,1705697444044,-201.81838364,0.000364,2]
[312233655,1705697444053,-151.0,0.00036541,4]
[312233657,1705697444062,-229.350845,0.00036712,2]
[312233659,1705697444072,-161.882638,0.00036712,2]
[312233661,1705697444081,-200.0,0.00036928,15]
[312233663,1705697444090,-200.0,0.00036928,15]
[312233665,1705697444099,-200.0,0.00036928,15]
[312233667,1705697444109,-200.0,0.00036928,15]
[312233669,1705697444118,-275.0,0.00036928,15]
[312233671,1705697444127,-1000.0,0.00036986,7]
[312233673,1705697444136,-155.50743149,0.00037,4]
[312233675,1705697444145,-273737.99348435,0.00037,3]
[312233677,1705697444156,-300.0,0.00037,19]
[312233679,1705697444165,-151.0,0.00037,2]
[312233681,1705697444174,-151.0,0.00037,2]
[312233683,1705697444183,-151.0,0.00037,2]
[312233685,1705697444192,-151.0,0.00037,2]
[312233687,1705697444201,-151.0,0.00037,2]
[312233689,1705697444210,-267.991024,0.00037,2]
[312233691,1705697444219,-411.419243,0.00037,2]
[312233693,1705697444228,-411.419243,0.00037,2]
[312233695,1705697444238,-1265.817322,0.00037,2]
[312233697,1705697444246,-1265.817322,0.00037,2]
[312233699,1705697444255,-10000.0,0.00037,2]
[312233701,1705697444264,-10000.0,0.00037,2]
[312233703,1705697444273,-10000.0,0.00037,2]
[312233705,1705697444282,-242.18206036,0.000371,5]
[312233706,1705697444291,-522.54288906,0.00037191,2]
[312233708,1705697444300,-7008.66019498,0.00037191,2]
[312233710,1705697444309,-327.32087992,0.00037191,2]
[312233712,1705697444319,-800.30331681,0.00037191,2]
[312233714,1705697444328,-372.12641649,0.00037191,2]
[312233716,1705697444337,-1000.0,0.00037191,10]
[312233718,1705697444346,-159.48274993,0.00037191,2]
[312233720,1705697444355,-435.65457606,0.00037191,2]
[312233722,1705697444364,-1000.0,0.00037191,10]
[312233724,1705697444373,-683.5909726,0.00037191,2]
[312233726,1705697444382,-564.86188527,0.00037191,2]
[312233728,1705697444391,-151.0,0.0003725,4]
[312233730,1705697444400,-155.0,0.0003748,2]
[312233732,1705697444411,-229.350845,0.00037534,2]
[312233734,1705697444420,-242.18206036,0.000378,5]
[312233736,1705697444429,-151.0,0.00037958,4]
[312233738,1705697444442,-504.31,0.00038,4]
[312233740,1705697444451,-1786.1851102,0.00038,4]
[312233742,1705697444461,-1000.0,0.00038,38]
[312233744,1705697444470,-154.43137173,0.00038049,7]
[312233746,1705697444480,-150.0,0.00038052,2]
[312233749,1705697444490,-154.43137173,0.00038061,7]
[312233751,1705697444499,-154.43137173,0.00038069,7]
[312233753,1705697444508,-154.12939898,0.0003813,7]
[312233755,1705697444517,-154.12939898,0.00038133,7]
[312233758,1705697444593,-154.43137173,0.000383,7]
[312233759,1705697444604,-1250.0,0.00038356,7]
[312233760,1705697444614,-159.79980507,0.00038356,7]
[312233761,1705697444625,-950.0,0.00038356,2]
[312233762,1705697444635,-229.350845,0.00038356,2]
[312233763,1705697444646,-161.882638,0.00038356,2]
[312233764,1705697444656,-154.43137173,0.00038404,7]
[312233765,1705697444666,-154.43137173,0.00038437,7]
[312233766,1705697444676,-2138.56848426,0.000385,4]
[312233767,1705697444685,-585.88983,0.000385,20]
[312233768,1705697444696,-421.67485906,0.000385,8]
[312233769,1705697444705,-5000.0,0.000385,7]
[312233770,1705697444715,-50000.0,0.000385,7]
[312233771,1705697444723,-950.0,0.0003863,2]
[312233772,1705697444734,-154.12939898,0.00038641,7]
[312233773,1705697444743,-151.0,0.00038666,4]
[312233775,1705697444753,-154.43137173,0.00038777,7]
[312233777,1705697444762,-950.0,0.00038904,2]
[312233779,1705697444771,-160.71960998,0.00038914,7]
[312233781,1705697444780,-154.12939898,0.00038991,7]
[312233783,1705697444789,-2273.73997091,0.00039,5]
[312233785,1705697444799,-154.43137173,0.0003911,7]
[312233787,1705697444808,-950.0,0.00039178,2]
[312233789,1705697444817,-229.350845,0.00039178,2]
[312233791,1705697444826,-3499.58,0.000393,60]
[312233793,1705697444835,-151.0,0.00039375,4]
[312233795,1705697444844,-5000.0,0.00039378,4]
[312233797,1705697444854,-950.0,0.00039452,2]
[312233799,1705697444862,-1000.0,0.00039516,10]
[312233801,1705697444871,-1000.0,0.00039516,10]
[312233803,1705697444880,-1000.0,0.00039516,10]
[312233805,1705697444890,-250.283854,0.000396,30]
[312233807,1705697444899,-154.43137173,0.00039652,7]
[312233809,1705697444909,-154.12939898,0.00039668,7]
[312233811,1705697444918,-154.12939898,0.00039693,7]
[312233813,1705697444927,-1500.0,0.00039726,7]
[312233815,1705697444937,-950.0,0.00039726,2]
[312233817,1705697444946,-154.43137173,0.00039763,7]
[312233818,1705697444955,-159.79980507,0.00039839,7]
[312233819,1705697444964,-159.5983,0.00039873,7]
[312233820,1705697444973,-159.79980507,0.00039962,7]
[312233821,1705697444982,-4037.80969129,0.0003999,4]